Body Name,Body Unit ,Service Label ,Service Code ,Organisation Unit ,Expenditure, Payment Date,Transaction Number,Net Payment ,Supplier ID,Supplier Name,
North West Leicestershire District Council , 31UH ,Housing Repairs,HRAHRM,HRA Housing Repairs & Maintenance,Decent homes payment,24/04/2013,1256002,"319,357.40",A039980,Kier Services Maintenance East Ltd,
North West Leicestershire District Council , 31UH ,Finance,FINPLA,Financial Planning,Parish precepts,25/04/2013,1256382,"173,100.00",A000091,Ashby De La Zouch Town Council,
North West Leicestershire District Council , 31UH ,Finance,FINPLA,Financial Planning,Parish Precepts,25/04/2013,1256378,"83,160.00",A000300,Castle Donington Parish Council,
North West Leicestershire District Council , 31UH ,Finance,FINPLA,Financial Planning,Rent payments,10/04/2013,1255065,"73,408.28",A000950,Leicestershire County Council,
North West Leicestershire District Council , 31UH ,Information Technology,ICT,ICT Services,IT - Scanning equipment,03/04/2013,1254919,"66,482.98",A034157,Idox Software Ltd,
North West Leicestershire District Council , 31UH ,Finance,FINPLA,Financial Planning,Parish precepts,25/04/2013,1256372,"62,500.00",A000807,Ibstock Parish Council,
North West Leicestershire District Council , 31UH ,Housing Repairs,HRAHRM,HRA Housing Repairs & Maintenance,Housing Repairs,18/04/2013,1256012,"53,415.86",A036453,Collective Enterprises Ltd,
North West Leicestershire District Council , 31UH ,Finance,FINPLA,Financial Planning,Parish precept,25/04/2013,1256367,"50,882.00",A001082,Measham Parish Council,
North West Leicestershire District Council , 31UH ,Finance,FINPLA,Financial Planning,Parish Council,25/04/2013,1256370,"47,500.22",A000882,Kegworth Parish Council,
North West Leicestershire District Council , 31UH ,Finance,FINPLA,Financial Planning,Parish precept,25/04/2013,1256381,"46,075.01",A000089,Ashby Woulds Town Council,
North West Leicestershire District Council , 31UH ,Housing,HRAPBS,HRA Performance & Business Support,IT - Software,03/04/2013,1254376,"37,176.00",A002968,Capita Business Services Ltd,
North West Leicestershire District Council , 31UH ,Street Management,ENOT,Environment Transport,Fake Snow,17/04/2013,1255569,"26,193.00",A038987,Platts Harris Ltd,
North West Leicestershire District Council , 31UH ,Finance,FINPLA,Financial Planning,Parish Precept,25/04/2013,1256375,"24,999.77",A021576,Ellistown And Battleflat Parish Council,
North West Leicestershire District Council , 31UH ,Street Management,ENOT,Environment Transport,Fuel purchases,03/04/2013,1254698,"23,124.00",A034942,Pace Petroleum Ltd,
North West Leicestershire District Council , 31UH ,Finance,FINPLA,Financial Planning,Parish precept,25/04/2013,1256363,"23,031.26",A001364,Ravenstone With Snibston PC,
North West Leicestershire District Council , 31UH ,Planning & Development,EPP,Environment Planning Policy,Consultancy Fees ,10/04/2013,1254741,"22,704.90",A027423,Leicestershire County Council,
North West Leicestershire District Council , 31UH ,Finance,FINPLA,Financial Planning,Parish precept,25/04/2013,1256366,"22,000.00",A001234,"Oakthorpe, Donisthorpe &",
North West Leicestershire District Council , 31UH ,Street Management,ENOT,Environment Transport,Fuel purchases,24/04/2013,1256090,"21,075.56",A034942,Pace Petroleum Ltd,
North West Leicestershire District Council , 31UH ,Finance,FINPLA,Financial Planning,Training,17/04/2013,1255557,"18,377.63",A000770,Hinckley & Bosworth Borough Council,
North West Leicestershire District Council , 31UH ,Finance,EXCH,Exchequer Services,Energy - Gas - Contract 2 + 5 + 6,10/04/2013,1255404,"17,974.70",A035709,Corona Energy Retail 4 Ltd,
North West Leicestershire District Council , 31UH ,Finance,EXCH,Exchequer Services,Supply of Temporary Staff,03/04/2013,1254644,"16,641.59",A036958,Comensura Limited,
North West Leicestershire District Council , 31UH ,Finance,FINPLA,Financial Planning,Parish precepts,25/04/2013,1256358,"15,525.10",A038617,Whitwick Parish Council,
North West Leicestershire District Council , 31UH ,Finance,FINPLA,Financial Planning,Parish precepts,25/04/2013,1256368,"15,250.00",A001010,Long Whatton & Diseworth PC,
North West Leicestershire District Council , 31UH ,Information Technology,ICT,ICT Services,IT - equipment,24/04/2013,1255669,"14,405.00",A016303,Esri (Uk) Ltd,
North West Leicestershire District Council , 31UH ,Finance,EXCH,Exchequer Services,Supply of Temporary Staff,17/04/2013,1255477,"14,304.77",A036958,Comensura Limited,
North West Leicestershire District Council , 31UH ,Street Management,ENOT,Environment Transport,Vehicles,24/04/2013,1256093,"13,872.35",A039232,Polar Ford Barnsley,
North West Leicestershire District Council , 31UH ,Neighbourhoods & Communities,NACN,N & C Neighbourhoods,Grants,10/04/2013,1255083,"13,710.00",A037854,South and West Leicestershire,
North West Leicestershire District Council , 31UH ,Finance,FINPLA,Financial Planning,Parish precepts,25/04/2013,1256373,"13,127.50",A038616,Hugglescote & Donington Le Heath,
North West Leicestershire District Council , 31UH ,Environmental Health,EEHL,Environmental Health & Licensing,Grants,17/04/2013,1255567,"12,500.00",A039000,Michael Peers Builders,
North West Leicestershire District Council , 31UH ,Planning & Development,EPP,Environment Planning Policy,Advice,10/04/2013,1255081,"12,065.00",A039976,BNP Paribas Real Estate,
North West Leicestershire District Council , 31UH ,Finance,EXCH,Exchequer Services,Supply of Temporary Staff,10/04/2013,1254960,"11,413.12",A036958,Comensura Limited,
North West Leicestershire District Council , 31UH ,Street Management,ESS,Environment - Street Scene,outdoor play equipment,17/04/2013,1255592,"11,211.00",A040084,Streetscape (Products & Services) Ltd,
North West Leicestershire District Council , 31UH ,Housing Repairs,HRAHRM,HRA Housing Repairs & Maintenance,Building services,10/04/2013,1255241,"11,193.22",A033342,J Tomlinson Ltd,
North West Leicestershire District Council , 31UH ,Finance,EXCH,Exchequer Services,Electricity,24/04/2013,1256116,"10,919.07",A034733,British Gas Business,
North West Leicestershire District Council , 31UH ,Housing Repairs,HRAHRM ,HRA Housing Repairs & Maintenance,Rent payments,17/04/2013,1255903,"10,745.17",A000950,Leicestershire County Council,
North West Leicestershire District Council , 31UH ,Housing Repairs,HRAHRM,HRA Housing Repairs & Maintenance,Consultancy Work,10/04/2013,1255220,"10,173.00",A036895,Bramble.cc Limited,
North West Leicestershire District Council , 31UH ,Information Technology,ICT,ICT Services,Telecommunications and data services,24/04/2013,1255623,"10,041.20",A032826,Freedom Communications (UK) Ltd,
North West Leicestershire District Council , 31UH ,Planning & Development,EPP,Environment Planning Policy,Rent payments,10/04/2013,1255030,"10,000.00",A000950,Leicestershire County Council,
North West Leicestershire District Council , 31UH ,Environmental Health,EES,Environmental Services,grant payment,17/04/2013,1255656,"10,000.00",A038916,MFW Building Services Ltd,
North West Leicestershire District Council , 31UH ,Finance,FINPLA,Financial Planning,Parish precept,25/04/2013,1256360,"9,977.14",A001608,Swannington Parish Council,
North West Leicestershire District Council , 31UH ,Finance,EXCH,Exchequer Services,Catalogue stocks,18/04/2013,1256015,"9,935.62",A000958,ESPO,
North West Leicestershire District Council , 31UH ,Finance,FINPLA,Financial Planning,Membership - Audit Commission,10/04/2013,1255066,"9,934.50",A000110,Audit Commission,
North West Leicestershire District Council , 31UH ,Finance,FINPLA,Financial Planning,Parish Council,25/04/2013,1256364,"9,500.00",A001257,Packington Parish Council,
North West Leicestershire District Council , 31UH ,Finance,EXCH,Exchequer Services,Supply of Temporary Staff,24/04/2013,1255963,"9,382.49",A036958,Comensura Limited,
North West Leicestershire District Council , 31UH ,Housing Strategy,HS,Community - Housing Strategy,Grants,03/04/2013,1254677,"9,350.00",A000530,East Midlands Housing Assocn,
North West Leicestershire District Council , 31UH ,Chief Exec,CHEX,Chief Executive,"Subscriptions, conferences and training",17/04/2013,1255619,"9,099.38",A002189,Local Government Association,
North West Leicestershire District Council , 31UH ,Finance,EXCH,Exchequer Services,Catalogue stocks,18/04/2013,1256010,"9,025.49",A000958,ESPO,
North West Leicestershire District Council , 31UH ,Housing Repairs,HRAHRM ,HRA Housing Repairs & Maintenance,BOILER REPLACEMENT,24/04/2013,1256174,"8,542.75",A031787,Laker BMS Ltd,
North West Leicestershire District Council , 31UH ,Environmental Health,EES,Environmental Services,Grant payment,03/04/2013,1254730,"8,095.96",A038469,Leicestershire County Council,
North West Leicestershire District Council , 31UH ,Street Management,ENOT,Environment Transport,road Maintenance,10/04/2013,1254712,"7,950.00",A002693,Leicestershire County Counc,
North West Leicestershire District Council , 31UH ,Environmental Health,EEHL,Environmental Health & Licensing,Grant payment,17/04/2013,1255568,"7,795.94",A038469,Leicestershire County Council,
North West Leicestershire District Council , 31UH ,Housing Repairs,HRAHRM ,HRA Housing Repairs & Maintenance,Construction,17/04/2013,1255763,"7,743.21",A036945,Apollo Property Services Group Limited,
North West Leicestershire District Council , 31UH ,Housing Repairs,HRAHRM ,HRA Housing Repairs & Maintenance,Construction,17/04/2013,1255769,"7,743.21",A036945,Apollo Property Services Group Limited,
North West Leicestershire District Council , 31UH ,Housing Repairs,HRAHRM ,HRA Housing Repairs & Maintenance,Construction,17/04/2013,1255772,"7,743.21",A036945,Apollo Property Services Group Limited,
North West Leicestershire District Council , 31UH ,Housing Repairs,HRAHRM ,HRA Housing Repairs & Maintenance,Construction,17/04/2013,1255764,"7,743.21",A036945,Apollo Property Services Group Limited,
North West Leicestershire District Council , 31UH ,Finance,FINPLA,Financial Planning,Parish precepts,25/04/2013,1256380,"7,500.00",A000164,Belton Parish Council,
North West Leicestershire District Council , 31UH ,Housing Repairs,HRAHRM ,HRA Housing Repairs & Maintenance,Construction,17/04/2013,1255765,"7,479.85",A036945,Apollo Property Services Group Limited,
North West Leicestershire District Council , 31UH ,Leisure Centres,CDCC,Castle Donington Community College,Training -Sports & Leisure partnership,24/04/2013,1256072,"7,470.00",A000302,Castle Donington College,
North West Leicestershire District Council , 31UH ,Leisure Centres,CDCC,Castle Donington Community College,Training -Sports & Leisure partnership,24/04/2013,1256073,"7,470.00",A000302,Castle Donington College,
North West Leicestershire District Council , 31UH ,Finance,FINPLA,Financial Planning,Parish precepts,25/04/2013,1256383,"7,250.00",A000060,Appleby Magna Parish Council,
North West Leicestershire District Council , 31UH ,Environmental Health,EES,Environmental Services,Disabled Facilities Grant,17/04/2013,1255655,"7,246.00",A027781,J Rennocks & Son Ltd,
North West Leicestershire District Council , 31UH ,Housing,HRAHM,HRA Housing Management,Rent payments,17/04/2013,1255438,"7,206.54",A000950,Leicestershire County Council,
North West Leicestershire District Council , 31UH ,Legal & Democratic,LDLS,Legal Services,Legal services,17/04/2013,1255502,"7,120.00",A031366,Bevan Brittan,
North West Leicestershire District Council , 31UH ,Housing,HRAPBS,HRA Performance & Business Support,Training,03/04/2013,1254606,"7,043.00",A000770,Hinckley & Bosworth Borough Council,
North West Leicestershire District Council , 31UH ,Communications,CS,Corporate - Customer Services,Post -Franking Machines,24/04/2013,1256044,"7,000.00",A000079,Neopost Limited,
North West Leicestershire District Council , 31UH ,Finance,FINPLA,Financial Planning,Parish precepts,25/04/2013,1256376,"7,000.00",A000382,Coleorton Parish Council,
North West Leicestershire District Council , 31UH ,Leisure & Culture,LCM,Leisure & Cult Mangt,Water Usage,24/04/2013,1256140,"6,982.69",A001136,Moira Furnace Museum Trust Ltd,
North West Leicestershire District Council , 31UH ,Finance,FINPLA,Financial Planning,Parish precepts,25/04/2013,1256379,"6,500.00",A000215,Breedon On The Hill Parish Council,
North West Leicestershire District Council , 31UH ,Housing Repairs,HRAHRM ,HRA Housing Repairs & Maintenance,Construction,17/04/2013,1255768,"6,172.72",A036945,Apollo Property Services Group Limited,
North West Leicestershire District Council , 31UH ,Communications,CS,Corporate - Customer Services,Post -Franking Machines,03/04/2013,1254908,"6,000.00",A000079,Neopost Limited,
North West Leicestershire District Council , 31UH ,Finance,EXCH,Exchequer Services,Catalogue stocks,18/04/2013,1256008,"5,991.54",A000958,ESPO,
North West Leicestershire District Council , 31UH ,Street Management,ESS,Environment - Street Scene,Supplier of Camera Equipment,03/04/2013,1254657,"5,990.00",A032888,The Enigma Encoding Company Ltd,
North West Leicestershire District Council , 31UH ,Finance,EXCH,Exchequer Services,Catalogue stocks,18/04/2013,1256011,"5,864.59",A000958,ESPO,
North West Leicestershire District Council , 31UH ,Housing,HRAHM,HRA Housing Management,Fire Safety Consultancy,10/04/2013,1255392,"5,850.00",A038408,London Fire Consultants & Design,
North West Leicestershire District Council , 31UH ,Finance,FINPLA,Financial Planning,Parish precepts,25/04/2013,1256374,"5,748.50",A000749,Heather Parish Council,
North West Leicestershire District Council , 31UH ,Legal & Democratic,LDLS,Legal Services,Contracting Practioner/Project Managemen,10/04/2013,1255071,"5,652.11",A040172,Q-Active Ltd,
North West Leicestershire District Council , 31UH ,Property Services,PROPFM,Property Facilities Management,Minor Works Framework Agreement,10/04/2013,1254747,"5,640.68",A036239,Alf Wright Construction Limited,
North West Leicestershire District Council , 31UH ,Housing,HRAHM,HRA Housing Management,Rent payments,17/04/2013,1254066,"5,607.17",A000950,Leicestershire County Council,
North West Leicestershire District Council , 31UH ,Information Technology,ICT,ICT Services,Telephony and computing,17/04/2013,1255558,"5,533.85",A008908,Virgin Media Business,
North West Leicestershire District Council , 31UH ,Communications,CS,Corporate - Customer Services,Telecommunications and data services,03/04/2013,1254659,"5,514.88",A032826,Freedom Communications (UK) Ltd,
North West Leicestershire District Council , 31UH ,Street Management,ENOGT,Environment General Technician,Water and Sewerage services,17/04/2013,1255680,"5,493.53",A001468,Severn Trent Water Limited,
North West Leicestershire District Council , 31UH ,Chief Exec,CHEX,Chief Executive,Rent payments,17/04/2013,1255621,"4,995.00",A000950,Leicestershire County Council,
North West Leicestershire District Council , 31UH ,Housing Repairs,HRAHRM ,HRA Housing Repairs & Maintenance,Construction,17/04/2013,1255767,"4,988.80",A036945,Apollo Property Services Group Limited,
North West Leicestershire District Council , 31UH ,Housing Repairs,HRAHRM ,HRA Housing Repairs & Maintenance,Construction,17/04/2013,1255766,"4,976.72",A036945,Apollo Property Services Group Limited,
North West Leicestershire District Council , 31UH ,Street Management,ENOP,Environment Parks,Electrical Installation Engineers,10/04/2013,1255033,"4,968.00",A000548,Electract Limited,
North West Leicestershire District Council , 31UH ,Housing Strategy,HS,Community - Housing Strategy,Home Visiting Scheme,03/04/2013,1254680,"4,905.00",A000780,Homestart (N.W. Leics),
North West Leicestershire District Council , 31UH ,Housing Repairs,HRAHRM ,HRA Housing Repairs & Maintenance,Construction,17/04/2013,1255770,"4,868.00",A036945,Apollo Property Services Group Limited,
North West Leicestershire District Council , 31UH ,Housing Repairs,HRAHRM ,HRA Housing Repairs & Maintenance,Construction,17/04/2013,1255771,"4,868.00",A036945,Apollo Property Services Group Limited,
North West Leicestershire District Council , 31UH ,Leisure Centres,ICC,Ibstock Community College,Grant,03/04/2013,1254658,"4,750.00",A027508,Ibstock Community College,
North West Leicestershire District Council , 31UH ,Leisure Centres,ICC,Ibstock Community College,Grant,03/04/2013,1254690,"4,750.00",A027508,Ibstock Community College,
North West Leicestershire District Council , 31UH ,Street Management,ENOT,Environment Transport,Refuse Vehicle Hire,17/04/2013,1255631,"4,655.00",A038553,M6 Vehicle Hire,
North West Leicestershire District Council , 31UH ,Housing,HRAHM,HRA Housing Management,Fuel servicing (Hsg Maintenance),10/04/2013,1255396,"4,558.54",A035675,Elite Sweep Service,
North West Leicestershire District Council , 31UH ,Finance,FINPLA,Financial Planning,Parish Precepts,25/04/2013,1256357,"4,500.00",A001813,Worthington Parish Council,
North West Leicestershire District Council , 31UH ,Corporate Director,HR,Human Resources,IT - software - HR,17/04/2013,1255699,"4,199.00",A000839,Bond International Software (UK) Ltd,
North West Leicestershire District Council , 31UH ,Finance,FINPLA,Financial Planning,Parish precepts,25/04/2013,1256369,"4,100.00",A000999,Lockington Cum Hemington PC,
North West Leicestershire District Council , 31UH ,Housing,HRAHM,HRA Housing Management,Washroom Consumables,24/04/2013,1256123,"4,072.02",A000816,Initial Washroom Solutions,
North West Leicestershire District Council , 31UH ,Housing Repairs,HRAHRM ,HRA Housing Repairs & Maintenance,BOILER REPLACEMENT,17/04/2013,1255777,"4,006.73",A031787,Laker BMS Ltd,
North West Leicestershire District Council , 31UH ,Property Services,PROPFM,Property Facilities Management,Energy - Electricity - Contract 1,10/04/2013,1255229,"3,949.79",A030266,Southern Electric,
North West Leicestershire District Council , 31UH ,Information Technology,ICT,ICT Services,IT Equipment & Services,03/04/2013,1254317,"3,948.00",A036738,Viglen Limited,
North West Leicestershire District Council , 31UH ,Information Technology,ICT,ICT Services,IT Equipment & Services,03/04/2013,1254788,"3,930.00",A036738,Viglen Limited,
North West Leicestershire District Council , 31UH ,Legal & Democratic,LDLS,Legal Services,Professional Services,10/04/2013,1255160,"3,909.00",A040126,Rachael Vowles,
North West Leicestershire District Council , 31UH ,Leisure & Culture,LCM,Leisure & Cult Mangt,Funding,24/04/2013,1256097,"3,890.00",A038599,Ibstock United Junior Foortball Club,
North West Leicestershire District Council , 31UH ,Finance,BENS,Housing Benefits,Parish Precepts,10/04/2013,1254949,"3,855.01",A000323,Charnwood Borough Council,
North West Leicestershire District Council , 31UH ,Street Management,ENOWM,Environment Waste Management,Waste bags,03/04/2013,1254694,"3,840.00",A028619,LBK Packaging,
North West Leicestershire District Council , 31UH ,Environmental Health,EES,Environmental Services,Builder,24/04/2013,1256151,"3,818.75",A031176,Keith Armston Building Contractor,
North West Leicestershire District Council , 31UH ,Housing Repairs,HRAHRM ,HRA Housing Repairs & Maintenance,Gas Connections,10/04/2013,1255288,"3,561.32",A036601,J Murphy & Sons Limited,
North West Leicestershire District Council , 31UH ,Housing Repairs,HRAHRM ,HRA Housing Repairs & Maintenance,Gas Connections,10/04/2013,1255289,"3,561.32",A036601,J Murphy & Sons Limited,
North West Leicestershire District Council , 31UH ,Planning & Development,EPP,Environment Planning Policy,Consultancy Fees ,03/04/2013,1254742,"3,421.55",A027423,Leicestershire County Council,
North West Leicestershire District Council , 31UH ,Street Management,ESS,Environment - Street Scene,Rent payments,17/04/2013,1255907,"3,401.87",A037057,D'Zign Uk Group,
North West Leicestershire District Council , 31UH ,Street Management,ESS,Environment - Street Scene,Training - Decent & Safe Homes,03/04/2013,1254656,"3,375.00",A000478,Derby City Council,
North West Leicestershire District Council , 31UH ,Leisure & Culture,CULTYP,Cultural Services Children & YoungPeople,Voluntary services,17/04/2013,1255657,"3,329.00",A001208,MRC Community Action,
North West Leicestershire District Council , 31UH ,Housing,HRAHM,HRA Housing Management,Fire Safety Consultancy,10/04/2013,1255393,"3,315.00",A038408,London Fire Consultants & Design,
North West Leicestershire District Council , 31UH ,Street Management,ESS,Environment - Street Scene,Pay and Display Machines,10/04/2013,1254704,"3,310.00",A028996,Metric Group Ltd (Sales),
North West Leicestershire District Council , 31UH ,Legal & Democratic,LDLS,Legal Services,Training,24/04/2013,1255979,"3,300.00",A034860,Practical Law Company Ltd,
North West Leicestershire District Council , 31UH ,Environmental Health,EES,Environmental Services,Grants,03/04/2013,1254722,"3,216.85",A038668,Adaptions,
North West Leicestershire District Council , 31UH ,Finance,FINPLA,Financial Planning,Lease charges,24/04/2013,1256110,"3,173.00",A040342,AssetCo Rentals (No 2) Limited,
North West Leicestershire District Council , 31UH ,Housing,HRAHM,HRA Housing Management,Fuel - solid,10/04/2013,1255029,"3,118.74",A031928,Coal4Energy Ltd,
North West Leicestershire District Council , 31UH ,Finance,FINPLA,Financial Planning,Parish precepts,25/04/2013,1256362,"3,088.00",A001524,Snarestone Parish Council,
North West Leicestershire District Council , 31UH ,Housing Repairs,HRAHRM ,HRA Housing Repairs & Maintenance,BOILER REPLACEMENT,17/04/2013,1255781,"3,048.98",A031787,Laker BMS Ltd,
North West Leicestershire District Council , 31UH ,Housing Repairs,HRAHRM,HRA Housing Repairs & Maintenance,IT - Software,10/04/2013,1251921,"3,037.90",A002968,Capita Business Services Ltd,
North West Leicestershire District Council , 31UH ,Planning & Development,ECCTV,Environment - Town Centre/CCTV,CCTV Systems,24/04/2013,1255199,"3,020.72",A035493,Quadrant Security Group Limited,
North West Leicestershire District Council , 31UH ,Housing,HRAPBS,HRA Performance & Business Support,Travel,24/04/2013,1255916,"3,011.00",A021569,Coalville Yellow Cabs Ltd,
North West Leicestershire District Council , 31UH ,Legal & Democratic,LDLS,Legal Services,Training - Members,10/04/2013,1255072,"3,010.00",A027739,Weightmans LLP,
North West Leicestershire District Council , 31UH ,Leisure & Culture,LCM,Leisure & Cult Mangt,Entertainment -Orchestras agency,24/04/2013,1256019,"2,946.20",A000537,Orchestras Live,
North West Leicestershire District Council , 31UH ,Leisure & Culture,SPA,Sport & Physical Activity,Container,03/04/2013,1254655,"2,925.00",A040317,Lion Containers Ltd,
North West Leicestershire District Council , 31UH ,Legal & Democratic,LDCE,Civic Expenses,Small civils and plant hire,03/04/2013,1254611,"2,883.11",A000438,Cuckoo Gap Limited,
North West Leicestershire District Council , 31UH ,Property Services,PROPCL,Property Commercial Lettings,Annual Telephone Maintenance,10/04/2013,1254954,"2,750.99",A036263,Support Span Limited,
North West Leicestershire District Council , 31UH ,Information Technology,ICT,ICT Services,Telecommunications Services,10/04/2013,1255375,"2,743.84",A038473,Cable & Wireless Worldwide,
North West Leicestershire District Council , 31UH ,Leisure & Culture,CULTIC,Cultural Services TIC,entertainment,03/04/2013,1254726,"2,664.00",A034672,Ashby Dramatic Society,
North West Leicestershire District Council , 31UH ,Housing Repairs,HRAHRM ,HRA Housing Repairs & Maintenance,BOILER REPLACEMENT,10/04/2013,1255278,"2,657.95",A031787,Laker BMS Ltd,
North West Leicestershire District Council , 31UH ,Corporate Director,HR,Human Resources,childcare vouchers,17/04/2013,1255700,"2,634.00",A038606,Premier Employer Solutions Limited,
North West Leicestershire District Council , 31UH ,Neighbourhoods & Communities,NACN,N & C Neighbourhoods,Non Charitable Social Work Activities,10/04/2013,1255082,"2,630.83",A027552,Age Concern Leicestershire & Rutland (Welfare services) ltd,
North West Leicestershire District Council , 31UH ,Information Technology,ICT,ICT Services,Photocopiers and consumables,10/04/2013,1255401,"2,622.07",A001301,The Danwood Group Ltd,
North West Leicestershire District Council , 31UH ,Finance,FINPLA,Financial Planning,Parish precepts,25/04/2013,1256359,"2,563.05",A001613,Swepstone Parish Council,
North West Leicestershire District Council , 31UH ,Housing Repairs,HRAHRM,HRA Housing Repairs & Maintenance,Decent homes payment,24/04/2013,1256001,"2,544.61",A039980,Kier Services Maintenance East Ltd,
North West Leicestershire District Council , 31UH ,Information Technology,ICT,ICT Services,IT - Equipment,10/04/2013,1255157,"2,506.00",A000470,Dell Computer Corporation Ltd,
North West Leicestershire District Council , 31UH ,Neighbourhoods & Communities,NACCS,N & C Community Safety,Rent payments,10/04/2013,1255224,"2,500.00",A000950,Leicestershire County Council,
North West Leicestershire District Council , 31UH ,Information Technology,ICT,ICT Services,Telecommunication - Line Rental,17/04/2013,1255576,"2,497.29",A035373,Virgin Media Business,
North West Leicestershire District Council , 31UH ,Finance,FINPLA,Financial Planning,Parish precepts,25/04/2013,1256365,"2,480.00",A001251,Osgathorpe Parish Council,
North West Leicestershire District Council , 31UH ,Street Management,ESS,Environment - Street Scene,HLUD Data,24/04/2013,1256124,"2,450.00",A036951,Landmark Information Group Limited,
North West Leicestershire District Council , 31UH ,Leisure Centres,HLC,Hermitage Leisure Centre,Energy - Electricity - Contract 1,24/04/2013,1256101,"2,442.10",A030266,Southern Electric,
North West Leicestershire District Council , 31UH ,Housing Repairs,HRAHRM,HRA Housing Repairs & Maintenance,Waste Disposal - tipping building,03/04/2013,1254790,"2,416.61",A035471,Ward Recycling,
North West Leicestershire District Council , 31UH ,Information Technology,ICT,ICT Services,IT - Scanning equipment,17/04/2013,1255475,"2,375.00",A034157,Idox Software Ltd,
North West Leicestershire District Council , 31UH ,Corporate Director,HR,Human Resources,Fleet rental,17/04/2013,1255694,"2,318.72",A039405,Inchcape Fleet Solutions,
North West Leicestershire District Council , 31UH ,Housing Repairs,HRAHRM ,HRA Housing Repairs & Maintenance,Rent payments,17/04/2013,1255892,"2,267.00",A000950,Leicestershire County Council,
North West Leicestershire District Council , 31UH ,Street Management,ENOT,Environment Transport,Safety equipment and clothing,03/04/2013,1254708,"2,252.35",A009933,Westbury Industrial Supplies Limited,
North West Leicestershire District Council , 31UH ,Housing Repairs,HRAHRM,HRA Housing Repairs & Maintenance,Waste Disposal - tipping building,17/04/2013,1255620,"2,189.88",A035471,Ward Recycling,
North West Leicestershire District Council , 31UH ,Leisure Centres,HPLC,Hood Park Leisure Centre,Swimwear & Accessories,24/04/2013,1256065,"2,168.10",A001833,Zoggs International Ltd,
North West Leicestershire District Council , 31UH ,Finance,EXCH,Exchequer Services,Rent,23/04/2013,1256128,"2,102.35",A000357,Co-Operative Bank Plc,
North West Leicestershire District Council , 31UH ,Housing Repairs,HRAHRM ,HRA Housing Repairs & Maintenance,BOILER REPLACEMENT,17/04/2013,1255850,"2,070.00",A031787,Laker BMS Ltd,
North West Leicestershire District Council , 31UH ,Housing Repairs,HRAHRM ,HRA Housing Repairs & Maintenance,BOILER REPLACEMENT,24/04/2013,1256249,"2,067.84",A031787,Laker BMS Ltd,
North West Leicestershire District Council , 31UH ,Housing Repairs,HRAHRM ,HRA Housing Repairs & Maintenance,Rent payments,17/04/2013,1255867,"2,059.40",A000950,Leicestershire County Council,
North West Leicestershire District Council , 31UH ,Street Management,ENOGT,Environment General Technician,Electricity & gas supplier,17/04/2013,1255681,"2,046.62",A028766,E.ON Energy Electricity Income Account,
North West Leicestershire District Council , 31UH ,Finance,FINPLA,Financial Planning,Leasing of vehicles and equipment,03/04/2013,1254713,"2,040.00",A030097,SG Equipment Finance Limited,
North West Leicestershire District Council , 31UH ,Property Services,PROPCL,Property Commercial Lettings,Security Services,10/04/2013,1254956,"2,028.30",A003044,Secom Plc,
North West Leicestershire District Council , 31UH ,Housing,HRAPBS,HRA Performance & Business Support,Membership,03/04/2013,1254321,"2,000.00",A038448,ARCH,
North West Leicestershire District Council , 31UH ,Planning & Development,EBC,Building Control,Consultancy Fees ,10/04/2013,1255036,"1,939.00",A027423,Leicestershire County Council,
North West Leicestershire District Council , 31UH ,Finance,FINPLA,Financial Planning,IT - software services,10/04/2013,1254993,"1,907.00",A025004,Consilium Technologies,
North West Leicestershire District Council , 31UH ,Street Management,ESS,Environment - Street Scene,Consultancy,24/04/2013,1255967,"1,900.00",A039235,Sharps Acoustics LLP,
North West Leicestershire District Council , 31UH ,Leisure Centres,HLC,Hermitage Leisure Centre,Claim,10/04/2013,1255127,"1,895.84",A027454,Measham Leisure Centre,
North West Leicestershire District Council , 31UH ,Housing Repairs,HRAHRM ,Housing Repairs,Alarm system repairs and maintenance,03/04/2013,1254811,"1,890.35",A001701,Tunstall Healthcare (UK) Limited,
North West Leicestershire District Council , 31UH ,Finance,EXCH,Exchequer Services,printer,24/04/2013,1256129,"1,876.00",A040438,ChequeWrite (UK) Limited,
North West Leicestershire District Council , 31UH ,Street Management,ENOT,Environment Transport,Car Parts,10/04/2013,1254969,"1,830.00",A039650,Andrew Page Ltd,
North West Leicestershire District Council , 31UH ,Information Technology,ICT,ICT Services,Telecommunications and data services,17/04/2013,1255545,"1,824.58",A032826,Freedom Communications (UK) Ltd,
North West Leicestershire District Council , 31UH ,Leisure Centres,HLC,Hermitage Leisure Centre,IT - software services,17/04/2013,1255652,"1,815.00",A024642,Gladstone MRM Ltd,
North West Leicestershire District Council , 31UH ,Finance,FINPLA,Financial Planning,Water and Sewerage services,10/04/2013,1255386,"1,802.10",A001468,Severn Trent Water Limited,
North West Leicestershire District Council , 31UH ,Housing Repairs,HRAHRM ,HRA Housing Repairs & Maintenance,BOILER REPLACEMENT,10/04/2013,1255277,"1,781.44",A031787,Laker BMS Ltd,
North West Leicestershire District Council , 31UH ,Information Technology,ICT,ICT Services,IT - Equipment,03/04/2013,1254019,"1,751.00",A000470,Dell Computer Corporation Ltd,
North West Leicestershire District Council , 31UH ,Information Technology,ICT,ICT Services,I.T Reseller,17/04/2013,1255561,"1,750.00",A025151,Probrand Limited,
North West Leicestershire District Council , 31UH ,Housing,HRAHM,HRA Housing Management,Water and Sewerage services,17/04/2013,1255693,"1,742.34",A001468,Severn Trent Water Limited,
North West Leicestershire District Council , 31UH ,Planning & Development,ECP,Environment Community Planning,Valuation Report,17/04/2013,1255611,"1,725.00",A034291,Valuation Office Agency,
North West Leicestershire District Council , 31UH ,Housing Repairs,HRAHRM ,HRA Housing Repairs & Maintenance,Rent payments,17/04/2013,1255890,"1,706.00",A000950,Leicestershire County Council,
North West Leicestershire District Council , 31UH ,Planning & Development,EPP,Environment Planning Policy,Grant payment,10/04/2013,1255379,"1,655.00",A034059,Leicestershire County Council,
North West Leicestershire District Council , 31UH ,Leisure & Culture,CULTIC,Cultural Services TIC,IT Software -Tourist Information System,17/04/2013,1255648,"1,650.00",A035114,New Vision Group Ltd,
North West Leicestershire District Council , 31UH ,Finance,FINPLA,Financial Planning,Parish precepts,25/04/2013,1256377,"1,625.00",A000322,Charley Parish Council,
North West Leicestershire District Council , 31UH ,Street Management,ESS,Environment - Street Scene,Boarding Kennels,24/04/2013,1255981,"1,623.01",A000385,College Garth Boarding Kennels,
North West Leicestershire District Council , 31UH ,Street Management,ESS,Environment - Street Scene,HLUD Data,10/04/2013,1254962,"1,550.00",A036951,Landmark Information Group Limited,
North West Leicestershire District Council , 31UH ,Housing Repairs,HRAHRM ,HRA Housing Repairs & Maintenance,BOILER REPLACEMENT,17/04/2013,1255863,"1,543.98",A031787,Laker BMS Ltd,
North West Leicestershire District Council , 31UH ,Leisure Centres,HPLC,Hood Park Leisure Centre,Gas & Electric - Boilers & flues,03/04/2013,1254778,"1,507.44",A013639,Hamworthy Heating Limited,
North West Leicestershire District Council , 31UH ,Planning & Development,EPP,Environment Planning Policy,Blinds and Awnings,03/04/2013,1254783,"1,475.67",A040305,Barlow Blinds,
North West Leicestershire District Council , 31UH ,Housing Repairs,HRAHRM ,HRA Housing Repairs & Maintenance,BOILER REPLACEMENT,17/04/2013,1255849,"1,466.25",A031787,Laker BMS Ltd,
North West Leicestershire District Council , 31UH ,Environmental Health,EES,Environmental Services,Builder,24/04/2013,1256152,"1,447.95",A031176,Keith Armston Building Contractor,
North West Leicestershire District Council , 31UH ,Planning & Development,ECP,Environment Community Planning,Training,10/04/2013,1255009,"1,429.80",A033228,NSPCC,
North West Leicestershire District Council , 31UH ,Housing,HRAHM,HRA Housing Management,Conferences - CIH,17/04/2013,1255517,"1,410.00",A033006,Ocean Media Group Ltd,
North West Leicestershire District Council , 31UH ,Finance,FINPLA,Financial Planning,Training,24/04/2013,1255973,"1,373.70",A000770,Hinckley & Bosworth Borough Council,
North West Leicestershire District Council , 31UH ,Planning & Development,ECP,Environment Community Planning,Training,17/04/2013,1255614,"1,372.92",A000770,Hinckley & Bosworth Borough Council,
North West Leicestershire District Council , 31UH ,Housing Repairs,HRAHRM ,HRA Housing Repairs & Maintenance,BOILER REPLACEMENT,24/04/2013,1256176,"1,362.30",A031787,Laker BMS Ltd,
North West Leicestershire District Council , 31UH ,Housing Repairs,HRAHRM ,HRA Housing Repairs & Maintenance,BOILER REPLACEMENT,24/04/2013,1256199,"1,355.20",A031787,Laker BMS Ltd,
North West Leicestershire District Council , 31UH ,Planning & Development,ECCTV,Environment - Town Centre/CCTV,Energy - Electricity - Contract 1,17/04/2013,1255442,"1,314.65",A030266,Southern Electric,
North West Leicestershire District Council , 31UH ,Street Management,ENOT,Environment Transport,Road fund licences,24/04/2013,1256033,"1,310.00",A008559,Post Office Limited,
North West Leicestershire District Council , 31UH ,Housing,HRAHM,HRA Housing Management,Membership,03/04/2013,1254937,"1,290.00",A028863,TPAS Limited,
North West Leicestershire District Council , 31UH ,Corporate Director,CORDI,Corporate Director,professional charges,10/04/2013,1255016,"1,289.11",A039356,Broadsted Associates Ltd,
North West Leicestershire District Council , 31UH ,Environmental Health,EEHL,Environmental Health & Licensing,IT - Scanning equipment,03/04/2013,1254900,"1,250.00",A034157,Idox Software Ltd,
North West Leicestershire District Council , 31UH ,Housing,HRAOPS,HRA Older Persons Service,Alarm system repairs and maintenance,10/04/2013,1254978,"1,249.75",A001701,Tunstall Healthcare (UK) Limited,
North West Leicestershire District Council , 31UH ,Street Management,ENOT,Environment Transport,Vehicle Servicing -Mini bus,24/04/2013,1256120,"1,246.00",A000376,J Coates (Hgv Services) Ltd,
North West Leicestershire District Council , 31UH ,Street Management,ENOT,Environment Transport,Vehicle Servicing -Mini bus,24/04/2013,1256121,"1,246.00",A000376,J Coates (Hgv Services) Ltd,
North West Leicestershire District Council , 31UH ,Housing Repairs,HRAHRM ,HRA Housing Repairs & Maintenance,Rent payments,17/04/2013,1255889,"1,242.00",A000950,Leicestershire County Council,
North West Leicestershire District Council , 31UH ,Street Management,ESS,Environment - Street Scene,Training,03/04/2013,1254763,"1,200.00",A039835,Ricardo-AEA Ltd,
North West Leicestershire District Council , 31UH ,Corporate Director,HR,Human Resources,Policing,10/04/2013,1255153,"1,197.00",A007096,The Office of the Police and Crime Commissioner for Leicestershire,
North West Leicestershire District Council , 31UH ,Finance,EXCH,Exchequer Services,Rent,23/04/2013,1256118,"1,191.81",A000357,Co-Operative Bank Plc,
North West Leicestershire District Council , 31UH ,Leisure Centres,HPLC,Hood Park Leisure Centre,Pool Alarm Systems & Maintenance,17/04/2013,1255078,"1,190.00",A001356,Radio Protection Services Limited,
North West Leicestershire District Council , 31UH ,Property Services,PROPFM,Property Facilities Management,Cleaning & hygiene systems,17/04/2013,1255441,"1,179.20",A009237,Phs Group Ltd,
North West Leicestershire District Council , 31UH ,Leisure Centres,HPLC,Hood Park Leisure Centre,Water and Sewerage services,17/04/2013,1255618,"1,159.98",A001468,Severn Trent Water Limited,
North West Leicestershire District Council , 31UH ,Environmental Health,EEHL,Environmental Health & Licensing,Veterinary & Food hygiene inspections,17/04/2013,1255665,"1,142.90",A033670,Eville And Jones Limited,
North West Leicestershire District Council , 31UH ,Housing Repairs,HRAHRM ,HRA Housing Repairs & Maintenance,BOILER REPLACEMENT,10/04/2013,1255305,"1,129.87",A031787,Laker BMS Ltd,
North West Leicestershire District Council , 31UH ,Leisure Centres,HPLC,Hood Park Leisure Centre,Energy - Electricity - Contract 1,17/04/2013,1255617,"1,110.85",A030266,Southern Electric,
North West Leicestershire District Council , 31UH ,Street Management,ENOT,Environment Transport,Gas - heating,17/04/2013,1255629,"1,104.38",A032686,Calor Gas Limited,
North West Leicestershire District Council , 31UH ,Street Management,ESS,Environment - Street Scene,Env Health Consultancy/Training,10/04/2013,1254784,"1,104.04",A037505,RH Environmental Limited,
North West Leicestershire District Council , 31UH ,Environmental Health,EES,Environmental Services,grant payment,03/04/2013,1254723,"1,100.00",A038386,David Kirton Designs,
North West Leicestershire District Council , 31UH ,Finance,FINPLA,Financial Planning,Membership - Audit Commission,03/04/2013,1254915,"1,100.00",A000110,Audit Commission,
North West Leicestershire District Council , 31UH ,Information Technology,ICT,ICT Services,IT Computer equipment,03/04/2013,1254674,"1,100.00",A031430,ComputerLand UK Plc,
North West Leicestershire District Council , 31UH ,Neighbourhoods & Communities,NACCS,N & C Community Safety,Specialist Event Provider - Conkers,10/04/2013,1255223,"1,100.00",A035724,Events With fx Limited,
North West Leicestershire District Council , 31UH ,Street Management,ENOP,Environment Parks,Environmental and safety products,17/04/2013,1255206,"1,078.88",A000671,Glasdon Manufacturing Limited,
North West Leicestershire District Council , 31UH ,Housing Repairs,HRAHRM ,HRA Housing Repairs & Maintenance,BOILER REPLACEMENT,24/04/2013,1256204,"1,070.18",A031787,Laker BMS Ltd,
North West Leicestershire District Council , 31UH ,Street Management,ENOT,Environment Transport,Roads - Rock Salt,03/04/2013,1254749,"1,066.89",A001433,Salt Union Ltd,
North West Leicestershire District Council , 31UH ,Leisure & Culture,CULTYP,Cultural Services Children & YoungPeople,Funding,24/04/2013,1256350,"1,056.00",A030872,Ashby Ivanhoe FC,
North West Leicestershire District Council , 31UH ,Street Management,ENOT,Environment Transport,JCB Dealership,24/04/2013,1256034,"1,050.00",A032114,Watling JCB Ltd,
North West Leicestershire District Council , 31UH ,Finance,EXCH,Exchequer Services,Cash collection,10/04/2013,1255240,"1,049.11",A004468,Kings Armoured Security Services Ltd,
North West Leicestershire District Council , 31UH ,Communications,CP,Corporate - Communications,Advertising Agency,17/04/2013,1255476,"1,045.09",A001395,Euro RSCG People T/A Havas People Ltd,
North West Leicestershire District Council , 31UH ,Housing,HRAHM,HRA Housing Management,Energy Survey,01/05/2013,1256162,"1,020.00",A039091,Energico,
North West Leicestershire District Council , 31UH ,Housing Strategy,HS,Community - Housing Strategy,Grant payment,03/04/2013,1254678,"1,012.00",A013575,North West Leicestershire,
North West Leicestershire District Council , 31UH ,Housing,HRAPBS,HRA Performance & Business Support,"Financial Training,AAT,ACCA or CIMA",24/04/2013,1255962,"1,008.33",A040435,Kaplan Financial,
North West Leicestershire District Council , 31UH ,Housing Repairs,HRAHRM,HRA Housing Repairs & Maintenance,Software supply and consultancy,10/04/2013,1255231,"1,000.00",A035213,PIMSS Data Systems,
North West Leicestershire District Council , 31UH ,Leisure & Culture,CULTEV,Cultural Services Arts & Events,Sound & Lighting,03/04/2013,1254729,"1,000.00",A027592,Lux Technical Ltd,
North West Leicestershire District Council , 31UH ,Street Management,ENOT,Environment Transport,JCB Dealership,17/04/2013,1255630,997.38,A032114,Watling JCB Ltd,
North West Leicestershire District Council , 31UH ,Street Management,ENOT,Environment Transport,Vehicle parts,24/04/2013,1255992,969.40,A000522,Dennis Eagle Limited,
North West Leicestershire District Council , 31UH ,Planning & Development,ECCTV,Environment - Town Centre/CCTV,Cleaning & hygiene systems,03/04/2013,1254696,968.94,A009237,Phs Group Ltd,
North West Leicestershire District Council , 31UH ,Property Services,PROPCL,Property Commercial Lettings,Postal Supplies -Franking Machines,10/04/2013,1255067,963.00,A008204,Purchase Power,
North West Leicestershire District Council , 31UH ,Street Management,ENOT,Environment Transport,Vehicle Repairs/Parts,10/04/2013,1255394,958.74,A000625,Ford & Slater Group Ltd,
North West Leicestershire District Council , 31UH ,Housing Repairs,HRAHRM,HRA Housing Repairs & Maintenance,IT - Software,10/04/2013,1250206,950.00,A002968,Capita Business Services Ltd,
North West Leicestershire District Council , 31UH ,Information Technology,ICT,ICT Services,Photocopiers and consumables,03/04/2013,1253824,938.71,A001301,The Danwood Group Ltd,
North West Leicestershire District Council , 31UH ,Housing,HRAHM,HRA Housing Management,Water and Sewerage services,17/04/2013,1255440,937.48,A001468,Severn Trent Water Limited,
North West Leicestershire District Council , 31UH ,Leisure & Culture,SPA,Sport & Physical Activity,Gym Equipment,24/04/2013,1255671,905.00,A001642,Technogym Uk Limited,
North West Leicestershire District Council , 31UH ,Planning & Development,ECP,Environment Community Planning,Consultancy - noise,17/04/2013,1255615,900.00,A027914,Rupert Taylor,
North West Leicestershire District Council , 31UH ,Housing Repairs,HRAHRM ,HRA Housing Repairs & Maintenance,BOILER REPLACEMENT,24/04/2013,1256238,897.00,A031787,Laker BMS Ltd,
North West Leicestershire District Council , 31UH ,Finance,EXCH,Exchequer Services,Computer Software,03/04/2013,1254909,888.70,A010859,Selima Limited,
North West Leicestershire District Council , 31UH ,Housing Repairs,HRAHRM ,HRA Housing Repairs & Maintenance,BOILER REPLACEMENT,10/04/2013,1255280,878.08,A031787,Laker BMS Ltd,
North West Leicestershire District Council , 31UH ,Information Technology,ICT,ICT Services,I.T Reseller,03/04/2013,1254005,868.00,A025151,Probrand Limited,
North West Leicestershire District Council , 31UH ,Housing Repairs,HRAHRM ,HRA Housing Repairs & Maintenance,BOILER REPLACEMENT,17/04/2013,1255815,862.50,A031787,Laker BMS Ltd,
North West Leicestershire District Council , 31UH ,Street Management,ESS,Environment - Street Scene,Cleaning & hygiene systems,10/04/2013,1255141,854.50,A009237,Phs Group Ltd,
North West Leicestershire District Council , 31UH ,Property Services,PROPFM,Property Facilities Management,Vending Services,10/04/2013,1254994,850.00,A037981,LTT Vending Limited,
North West Leicestershire District Council , 31UH ,Property Services,PROPFM,Property Facilities Management,Vending Services,24/04/2013,1256126,850.00,A037981,LTT Vending Limited,
North West Leicestershire District Council , 31UH ,Street Management,ESS,Environment - Street Scene,Training - Parking Enforcement Officers,10/04/2013,1254961,840.00,A035742,Alpha Parking Limited,
North West Leicestershire District Council , 31UH ,Housing,HRAHM,HRA Housing Management,Bed & Breakfast,17/04/2013,1254938,840.00,A032364,Pinewood Lodge,
North West Leicestershire District Council , 31UH ,Street Management,ESS,Environment - Street Scene,Training - Parking Enforcement Officers,17/04/2013,1255650,840.00,A035742,Alpha Parking Limited,
North West Leicestershire District Council , 31UH ,Housing Repairs,HRAHRM ,HRA Housing Repairs & Maintenance,BOILER REPLACEMENT,17/04/2013,1255816,827.72,A031787,Laker BMS Ltd,
North West Leicestershire District Council , 31UH ,Legal & Democratic,LDLS,Legal Services,Legal books & publications,17/04/2013,1255501,825.00,A006155,LexisNexis UK,
North West Leicestershire District Council , 31UH ,Finance,FINPLA,Financial Planning,Leasing of vehicles and equipment,03/04/2013,1254714,820.00,A030097,SG Equipment Finance Limited,
North West Leicestershire District Council , 31UH ,Housing Repairs,HRAHRM ,HRA Housing Repairs & Maintenance,BOILER REPLACEMENT,24/04/2013,1256201,811.83,A031787,Laker BMS Ltd,
North West Leicestershire District Council , 31UH ,Housing Repairs,HRAHRM ,HRA Housing Repairs & Maintenance,Fuel servicing (Hsg Maintenance),10/04/2013,1255431,811.16,A035675,Elite Sweep Service,
North West Leicestershire District Council , 31UH ,Street Management,ENOP,Environment Parks,Parks - Precast Concrete Posts and Fittings,17/04/2013,1255467,792.47,A013933,Grangewood Fencing Supplies Limited,
North West Leicestershire District Council , 31UH ,Street Management,ESS,Environment - Street Scene,Cleaning & hygiene systems,10/04/2013,1255142,786.10,A009237,Phs Group Ltd,
North West Leicestershire District Council , 31UH ,Leisure Centres,HPBC,Hood Park Bar and Catering,Catering Supplies - Confectionery.,24/04/2013,1256106,785.79,A001264,Palmer Harvey Mclane Ltd,
North West Leicestershire District Council , 31UH ,Leisure Centres,HLC,Hermitage Leisure Centre,Licence ,10/04/2013,1255165,780.80,A029585,QAS Ltd,
North West Leicestershire District Council , 31UH ,Housing,HRAOPS,HRA Older Persons Service,Alarm system repairs and maintenance,10/04/2013,1255147,772.00,A001701,Tunstall Healthcare (UK) Limited,
North West Leicestershire District Council , 31UH ,Housing Repairs,HRAHRM ,HRA Housing Repairs & Maintenance,BOILER REPLACEMENT,17/04/2013,1255864,752.10,A031787,Laker BMS Ltd,
North West Leicestershire District Council , 31UH ,Corporate Director,HR,Human Resources,Criminal Records Checks,10/04/2013,1255398,748.00,A027625,Criminal Records Bureau T/A The Disclosure & Barring Service,
North West Leicestershire District Council , 31UH ,Housing Repairs,HRAHRM,HRA Housing Repairs & Maintenance,Safety equipment and clothing,03/04/2013,1254792,744.72,A009933,Westbury Industrial Supplies Limited,
North West Leicestershire District Council , 31UH ,Planning & Development,EDC,Environment - Development Control,Advertising Agency,17/04/2013,1255523,739.52,A001395,Euro RSCG People T/A Havas People Ltd,
North West Leicestershire District Council , 31UH ,Planning & Development,ECP,Environment Community Planning,Project Management,10/04/2013,1255226,723.00,A038877,Groundwork Leicester & Leicestershire Ltd,
North West Leicestershire District Council , 31UH ,Information Technology,ICT,ICT Services,Photocopiers and consumables,24/04/2013,1256047,713.13,A001301,The Danwood Group Ltd,
North West Leicestershire District Council , 31UH ,Housing,HRAHM,HRA Housing Management,Printing Services,17/04/2013,1255494,712.00,A037241,The Barkby Thorpe Press,
North West Leicestershire District Council , 31UH ,Street Management,ENOT,Environment Transport,JCB Dealership,24/04/2013,1256122,705.36,A032114,Watling JCB Ltd,
North West Leicestershire District Council , 31UH ,Housing Strategy,HS,Community - Housing Strategy,Homelessness - Bed & Breakfast,10/04/2013,1255395,700.00,A027377,Leicester City Hotel,
North West Leicestershire District Council , 31UH ,Street Management,ENOT,Environment Transport,Vehicle & Electrical Parts,10/04/2013,1254984,699.00,A035550,C F Parkinson Limited,
North West Leicestershire District Council , 31UH ,Street Management,ENOP,Environment Parks,Parks - Irrigation Equipt Maint & Servic,17/04/2013,1255628,690.00,A000672,Glen Farrow Uk Limited,
North West Leicestershire District Council , 31UH ,Leisure Centres,HLC,Hermitage Leisure Centre,Gym Equipment,17/04/2013,1255455,689.16,A001642,Technogym Uk Limited,
North West Leicestershire District Council , 31UH ,Legal & Democratic,LDLS,Legal Services,Business Support,24/04/2013,1255980,687.50,A040432,Recognising Excellence Ltd,
North West Leicestershire District Council , 31UH ,Housing Repairs,HRAHRM ,HRA Housing Repairs & Maintenance,BOILER REPLACEMENT,24/04/2013,1256254,685.00,A031787,Laker BMS Ltd,
North West Leicestershire District Council , 31UH ,Property Services,PROPCL,Property Commercial Lettings,Cleaning & hygiene systems,10/04/2013,1254950,679.92,A009237,Phs Group Ltd,
North West Leicestershire District Council , 31UH ,Street Management,ENOT,Environment Transport,Fuel purchases,03/04/2013,1254699,675.47,A034942,Pace Petroleum Ltd,
North West Leicestershire District Council , 31UH ,Housing Repairs,HRAHRM ,HRA Housing Repairs & Maintenance,BOILER REPLACEMENT,17/04/2013,1255865,671.60,A031787,Laker BMS Ltd,
North West Leicestershire District Council , 31UH ,Information Technology,ICT,ICT Services,Paper & Boards,17/04/2013,1255474,661.71,A038178,Antalis Limited,
North West Leicestershire District Council , 31UH ,Street Management,ESS,Environment - Street Scene,signage solutions,03/04/2013,1254635,660.00,A039764,EPT SERVICES,
North West Leicestershire District Council , 31UH ,Street Management,ENOT,Environment Transport,Fuel purchases,24/04/2013,1256091,652.23,A034942,Pace Petroleum Ltd,
North West Leicestershire District Council , 31UH ,Information Technology,ICT,ICT Services,IT - Equipment,03/04/2013,1253962,651.00,A000470,Dell Computer Corporation Ltd,
North West Leicestershire District Council , 31UH ,Leisure & Culture,SPA,Sport & Physical Activity,Rent payments,03/04/2013,1254594,650.00,A000950,Leicestershire County Council,
North West Leicestershire District Council , 31UH ,Property Services,PROPCL,Property Commercial Lettings,IT - Telephone and computing,17/04/2013,1255622,649.83,A000233,British Telecommunications Plc,
North West Leicestershire District Council , 31UH ,Property Services,PROPCL,Property Commercial Lettings,Supply and Support of IT Equipment,10/04/2013,1254955,645.00,A028853,CommSoft Support,
North West Leicestershire District Council , 31UH ,Planning & Development,EDC,Environment - Development Control,Advertising Agency,17/04/2013,1255521,636.83,A001395,Euro RSCG People T/A Havas People Ltd,
North West Leicestershire District Council , 31UH ,Planning & Development,ECCTV,Environment - Town Centre/CCTV,Subscription Fee,17/04/2013,1255499,636.00,A032899,National Association of British,
North West Leicestershire District Council , 31UH ,Street Management,ESS,Environment - Street Scene,LPG Gas supplier,17/04/2013,1255452,635.42,A040384,Flogas Uk Ltd,
North West Leicestershire District Council , 31UH ,Street Management,ENOT,Environment Transport,Vehicle Repairs/Parts,03/04/2013,1254911,632.00,A000625,Ford & Slater Group Ltd,
North West Leicestershire District Council , 31UH ,Housing,HRAHM,HRA Housing Management,Professional fees,03/04/2013,1253949,627.50,A034964,Mansfield Mediation Ltd,
North West Leicestershire District Council , 31UH ,Leisure & Culture,SPA,Sport & Physical Activity,Education/Training,10/04/2013,1255143,625.00,A040399,BACPR Education,
North West Leicestershire District Council , 31UH ,Housing Repairs,HRAHRM ,HRA Housing Repairs & Maintenance,Gas & Electricity - Gas installation,10/04/2013,1255281,622.33,A026237,British Gas Trading Limited,
North West Leicestershire District Council , 31UH ,Information Technology,ICT,ICT Services,Photocopiers and consumables,10/04/2013,1255402,614.48,A001301,The Danwood Group Ltd,
North West Leicestershire District Council , 31UH ,Housing Repairs,HRAHRM ,HRA Housing Repairs & Maintenance,BOILER REPLACEMENT,17/04/2013,1255822,604.15,A031787,Laker BMS Ltd,
North West Leicestershire District Council , 31UH ,Housing Repairs,HRAHRM ,HRA Housing Repairs & Maintenance,BOILER REPLACEMENT,24/04/2013,1256202,604.15,A031787,Laker BMS Ltd,
North West Leicestershire District Council , 31UH ,Corporate Director,HR,Human Resources,Licence,10/04/2013,1255437,600.00,A001375,Reed Business Information Ltd,
North West Leicestershire District Council , 31UH ,Corporate Director,HR,Human Resources,Licence,03/04/2013,1254654,600.00,A001375,Reed Business Information Ltd,
North West Leicestershire District Council , 31UH ,Finance,EXCH,Exchequer Services,IT - Software,24/04/2013,1256166,595.00,A002968,Capita Business Services Ltd,
North West Leicestershire District Council , 31UH ,Street Management,ENOT,Environment Transport,Vehicles -Hydraulic Engineers,10/04/2013,1254976,593.00,A001106,Midland Hydraulic Services Limited,
North West Leicestershire District Council , 31UH ,Street Management,ENOGT,Environment General Technician,Small civils and plant hire,17/04/2013,1255647,586.66,A000438,Cuckoo Gap Limited,
North West Leicestershire District Council , 31UH ,Leisure Centres,HPLC,Hood Park Leisure Centre,Telecommunication - Line Rental,03/04/2013,1254789,580.83,A035373,Virgin Media Business,
North West Leicestershire District Council , 31UH ,Leisure Centres,HPLC,Hood Park Leisure Centre,Telecommunication - Line Rental,24/04/2013,1256109,580.83,A035373,Virgin Media Business,
North West Leicestershire District Council , 31UH ,Housing Repairs,HRAHRM,HRA Housing Repairs & Maintenance,Gas Registration Body,03/04/2013,1254681,579.00,A036004,Capita Gas Registration & Ancillary Services Ltd,
North West Leicestershire District Council , 31UH ,Street Management,ENOT,Environment Transport,Road fund licences,24/04/2013,1256032,560.00,A033683,DVLA Swansea,
North West Leicestershire District Council , 31UH ,Neighbourhoods & Communities,NACN,N & C Neighbourhoods,Grant payment,10/04/2013,1255084,555.00,A038236,Albert Village JFC,
North West Leicestershire District Council , 31UH ,Leisure Centres,HLC,Hermitage Leisure Centre,Heating Services,17/04/2013,1255661,553.70,A000639,William Freer Ltd,
North West Leicestershire District Council , 31UH ,Housing Repairs,HRAHRM ,HRA Housing Repairs & Maintenance,BOILER REPLACEMENT,17/04/2013,1255814,552.48,A031787,Laker BMS Ltd,
North West Leicestershire District Council , 31UH ,Information Technology,ICT,ICT Services,Printing,17/04/2013,1255389,550.00,A033406,Alfred Willday & Son Ltd,
North West Leicestershire District Council , 31UH ,Street Management,ENOP,Environment Parks,Sports Turf Contractors,24/04/2013,1256125,550.00,A038270,F Woodward & Sons (Woodward Turfcare),
North West Leicestershire District Council , 31UH ,Street Management,ENOGT,Environment General Technician,Water and Sewerage services,17/04/2013,1255678,549.74,A001468,Severn Trent Water Limited,
North West Leicestershire District Council , 31UH ,Information Technology,ICT,ICT Services,"IT Hardware, Software Licensing",24/04/2013,1255560,547.71,A021505,Insight Uk,
North West Leicestershire District Council , 31UH ,Housing Repairs,HRAHRM ,HRA Housing Repairs & Maintenance,BOILER REPLACEMENT,24/04/2013,1256175,545.83,A031787,Laker BMS Ltd,
North West Leicestershire District Council , 31UH ,Street Management,ENOP,Environment Parks,Horticulture - Weed Remover Products,03/04/2013,1254748,542.00,A000392,Complete Weed Control,
North West Leicestershire District Council , 31UH ,Housing,HRAOPS,HRA Older Persons Service,Rent payments,17/04/2013,1255663,538.76,A000950,Leicestershire County Council,
North West Leicestershire District Council , 31UH ,Leisure & Culture,CULTIC,Cultural Services TIC,Rent payments,24/04/2013,1256038,537.50,A000950,Leicestershire County Council,
North West Leicestershire District Council , 31UH ,Leisure Centres,HPLC,Hood Park Leisure Centre,Catalogue stocks,24/04/2013,1256053,530.00,A000958,ESPO,
North West Leicestershire District Council , 31UH ,Leisure Centres,HPBC,Hood Park Bar and Catering,Catering Supplies - Confectionery.,24/04/2013,1256107,528.62,A001264,Palmer Harvey Mclane Ltd,
North West Leicestershire District Council , 31UH ,Leisure Centres,CDCC,Castle Donington Community College,Portable accommodation; secure storage,10/04/2013,1255130,522.58,A005413,Elliott Group Limited,
North West Leicestershire District Council , 31UH ,Information Technology,ICT,ICT Services,IT - Equipment,10/04/2013,1255171,518.00,A000470,Dell Computer Corporation Ltd,
North West Leicestershire District Council , 31UH ,Housing Repairs,HRAHRM ,HRA Housing Repairs & Maintenance,BOILER REPLACEMENT,03/04/2013,1254876,517.70,A031787,Laker BMS Ltd,
North West Leicestershire District Council , 31UH ,Street Management,ENOT,Environment Transport,Roadsweeper repairs and maintenance,08/05/2013,1255077,517.58,A001445,Scarab Sweepers Limited,
North West Leicestershire District Council , 31UH ,Information Technology,ICT,ICT Services,software licences,03/04/2013,1254650,514.36,A036174,Oracle Corporation UK Ltd.,
North West Leicestershire District Council , 31UH ,Housing Repairs,HRAHRM ,HRA Housing Repairs & Maintenance,BOILER REPLACEMENT,03/04/2013,1254793,512.79,A031787,Laker BMS Ltd,
North West Leicestershire District Council , 31UH ,Corporate Director,HR,Human Resources,Training,17/04/2013,1255698,510.00,A038919,Personal Performance Consultants UK Ltd,
North West Leicestershire District Council , 31UH ,Leisure Centres,HLC,Hermitage Leisure Centre,Security Services,17/04/2013,1255651,506.25,A037299,Security Alert UK,
North West Leicestershire District Council , 31UH ,Housing Repairs,HRAHRM ,HRA Housing Repairs & Maintenance,BOILER REPLACEMENT,24/04/2013,1256183,500.07,A031787,Laker BMS Ltd,
